[Event "Titled Tuesday Blitz June 6 Early 2023"]
[White "Sourath Biswas"]
[Black "Afanasieva, Alexandra"]
[WhiteFideId "35091484"]
[BlackFideId "34126926"]
[WhiteElo "2171"]
[BlackElo "1736"]
[Result "1-0"]
[Round "4"]
[TimeControl "180+2"]
[Date "2023.06.06"]
[WhiteClock "0:01:29"]
[BlackClock "0:00:26"]
[Board "91"]

1. d4 {[%clk 0:03:00]}  Nf6 {[%clk 0:02:59]} 2. Bf4 {[%clk 0:03:01]}  b6 {[%clk 0:02:59]} 3. Nc3 {[%clk 0:02:59]}  e6 {[%clk 0:02:48]} 4. e4 {[%clk 0:02:57]}  Bb7 {[%clk 0:02:47]} 5. Bd3 {[%clk 0:02:55]}  Bb4 {[%clk 0:02:46]} 6. Qe2 {[%clk 0:02:55]}  d5 {[%clk 0:02:33]} 7. e5 {[%clk 0:02:50]}  Ne4 {[%clk 0:02:33]} 8. Bd2 {[%clk 0:02:49]}  Nxd2 {[%clk 0:02:26]} 9. Qxd2 {[%clk 0:02:48]}  c5 {[%clk 0:02:26]} 10. a3 {[%clk 0:02:47]}  cxd4 {[%clk 0:02:18]} 11. axb4 {[%clk 0:02:42]}  dxc3 {[%clk 0:02:18]} 12. bxc3 {[%clk 0:02:42]}  d4 {[%clk 0:01:59]} 13. Nf3 {[%clk 0:02:38]}  Bxf3 {[%clk 0:01:38]} 14. gxf3 {[%clk 0:02:39]}  dxc3 {[%clk 0:01:38]} 15. Bb5+ {[%clk 0:02:18]}  Nd7 {[%clk 0:01:37]} 16. Qd6 {[%clk 0:01:43]}  Qe7 {[%clk 0:01:13]} 17. Bc6 {[%clk 0:01:30]}  Qxd6 {[%clk 0:00:59]} 18. exd6 {[%clk 0:01:29]}  Rc8 {[%clk 0:00:26]} 19. Rxa7 {[%clk 0:01:29]} 1-0


[Site "https://www.chess.com"]

[Event "Titled Tuesday Blitz June 6 Early 2023"]
[White "Atakhan, Abtin"]
[Black "Dubreuil, Julien"]
[WhiteFideId "22502203"]
[BlackFideId "621285"]
[WhiteElo "2008"]
[BlackElo "2282"]
[Result "1-0"]
[Round "4"]
[TimeControl "180+2"]
[Date "2023.06.06"]
[WhiteClock "0:00:08"]
[BlackClock "0:00:12"]
[Board "92"]

1. Nf3 {[%clk 0:03:00]}  Nf6 {[%clk 0:02:58]} 2. c4 {[%clk 0:03:01]}  e6 {[%clk 0:02:58]} 3. Nc3 {[%clk 0:03:01]}  d5 {[%clk 0:02:58]} 4. e3 {[%clk 0:03:02]}  c5 {[%clk 0:02:58]} 5. cxd5 {[%clk 0:03:02]}  Nxd5 {[%clk 0:02:57]} 6. Nxd5 {[%clk 0:03:02]}  Qxd5 {[%clk 0:02:56]} 7. b3 {[%clk 0:03:01]}  Nc6 {[%clk 0:02:56]} 8. Bb2 {[%clk 0:03:00]}  b6 {[%clk 0:02:54]} 9. Bc4 {[%clk 0:02:57]}  Qd7 {[%clk 0:02:52]} 10. Bb5 {[%clk 0:02:55]}  Bb7 {[%clk 0:02:41]} 11. Ne5 {[%clk 0:02:49]}  Qc7 {[%clk 0:02:42]} 12. Qg4 {[%clk 0:02:46]}  a6 {[%clk 0:02:22]} 13. Bxc6+ {[%clk 0:02:29]}  Bxc6 {[%clk 0:02:23]} 14. Nxc6 {[%clk 0:02:23]}  Qxc6 {[%clk 0:02:23]} 15. O-O {[%clk 0:02:19]}  h5 {[%clk 0:02:17]} 16. Qg5 {[%clk 0:02:08]}  Rh6 {[%clk 0:01:58]} 17. f3 {[%clk 0:02:08]}  Be7 {[%clk 0:01:44]} 18. Qxg7 {[%clk 0:02:08]}  Rg6 {[%clk 0:01:45]} 19. Qh8+ {[%clk 0:02:08]}  Kd7 {[%clk 0:01:45]} 20. Qxh5 {[%clk 0:02:07]}  Rag8 {[%clk 0:01:45]} 21. Rf2 {[%clk 0:02:02]}  Bd6 {[%clk 0:01:38]} 22. d4 {[%clk 0:01:45]}  c4 {[%clk 0:01:26]} 23. Rc1 {[%clk 0:01:44]}  b5 {[%clk 0:01:16]} 24. bxc4 {[%clk 0:01:43]}  bxc4 {[%clk 0:01:16]} 25. e4 {[%clk 0:01:16]}  Qb5 {[%clk 0:01:13]} 26. Qxb5+ {[%clk 0:01:07]}  axb5 {[%clk 0:01:13]} 27. a4 {[%clk 0:01:07]}  bxa4 {[%clk 0:00:36]} 28. Rxc4 {[%clk 0:01:07]}  Ra8 {[%clk 0:00:36]} 29. Bc1 {[%clk 0:01:04]}  Rgg8 {[%clk 0:00:35]} 30. Ra2 {[%clk 0:01:03]}  Rgc8 {[%clk 0:00:35]} 31. Rxc8 {[%clk 0:00:49]}  Rxc8 {[%clk 0:00:36]} 32. Ba3 {[%clk 0:00:39]}  Bxa3 {[%clk 0:00:34]} 33. Rxa3 {[%clk 0:00:40]}  Rc4 {[%clk 0:00:33]} 34. h4 {[%clk 0:00:38]}  Kc6 {[%clk 0:00:32]} 35. h5 {[%clk 0:00:39]}  Kb5 {[%clk 0:00:32]} 36. g4 {[%clk 0:00:34]}  f6 {[%clk 0:00:27]} 37. e5 {[%clk 0:00:31]}  fxe5 {[%clk 0:00:16]} 38. dxe5 {[%clk 0:00:32]}  Kc5 {[%clk 0:00:15]} 39. h6 {[%clk 0:00:30]}  Kd5 {[%clk 0:00:15]} 40. h7 {[%clk 0:00:28]}  Rc8 {[%clk 0:00:14]} 41. Rxa4 {[%clk 0:00:28]}  Kxe5 {[%clk 0:00:15]} 42. Kg2 {[%clk 0:00:21]}  Kf6 {[%clk 0:00:15]} 43. Kg3 {[%clk 0:00:18]}  Kg6 {[%clk 0:00:15]} 44. Ra7 {[%clk 0:00:18]}  e5 {[%clk 0:00:16]} 45. Kf2 {[%clk 0:00:16]}  Re8 {[%clk 0:00:13]} 46. Ke3 {[%clk 0:00:16]}  Kh6 {[%clk 0:00:13]} 47. Ke4 {[%clk 0:00:16]}  Kg6 {[%clk 0:00:14]} 48. Rb7 {[%clk 0:00:17]}  Kh6 {[%clk 0:00:13]} 49. Rb5 {[%clk 0:00:13]}  Kxh7 {[%clk 0:00:11]} 50. Rxe5 {[%clk 0:00:14]}  Rd8 {[%clk 0:00:11]} 51. f4 {[%clk 0:00:14]}  Kg7 {[%clk 0:00:11]} 52. Re6 {[%clk 0:00:13]}  Kf7 {[%clk 0:00:11]} 53. f5 {[%clk 0:00:11]}  Ra8 {[%clk 0:00:11]} 54. g5 {[%clk 0:00:10]}  Ra4+ {[%clk 0:00:11]} 55. Kf3 {[%clk 0:00:10]}  Ra3+ {[%clk 0:00:12]} 56. Kf4 {[%clk 0:00:11]}  Ra4+ {[%clk 0:00:12]} 57. Re4 {[%clk 0:00:11]}  Ra3 {[%clk 0:00:12]} 58. g6+ {[%clk 0:00:10]}  Kg7 {[%clk 0:00:12]} 59. Re7+ {[%clk 0:00:09]}  Kf8 {[%clk 0:00:12]} 60. f6 {[%clk 0:00:08]}  Ra4+ {[%clk 0:00:12]} 61. Kg5 {[%clk 0:00:08]} 1-0


[Site "https://www.chess.com"]

[Event "Titled Tuesday Blitz June 6 Early 2023"]
[White "Yuan, Qingyu"]
[Black "Bas Mas, Jose Joaquin"]
[WhiteFideId "8609772"]
[BlackFideId "22219064"]
[WhiteElo "2359"]
[BlackElo "2212"]
[Result "1-0"]
[Round "4"]
[TimeControl "180+2"]
[Date "2023.06.06"]
[WhiteClock "0:00:17"]
[BlackClock "0:00:08"]
[Board "94"]

1. Nf3 {[%clk 0:03:00]}  Nf6 {[%clk 0:02:59]} 2. c4 {[%clk 0:03:01]}  e6 {[%clk 0:03:00]} 3. g3 {[%clk 0:03:01]}  d5 {[%clk 0:03:00]} 4. Bg2 {[%clk 0:03:01]}  Be7 {[%clk 0:03:00]} 5. O-O {[%clk 0:03:02]}  O-O {[%clk 0:03:01]} 6. b3 {[%clk 0:03:02]}  d4 {[%clk 0:03:01]} 7. e3 {[%clk 0:03:01]}  c5 {[%clk 0:03:02]} 8. exd4 {[%clk 0:02:54]}  cxd4 {[%clk 0:03:03]} 9. d3 {[%clk 0:02:54]}  Nc6 {[%clk 0:03:02]} 10. a3 {[%clk 0:02:54]}  a5 {[%clk 0:03:00]} 11. Re1 {[%clk 0:02:54]}  Nd7 {[%clk 0:02:49]} 12. Nbd2 {[%clk 0:02:48]}  e5 {[%clk 0:02:47]} 13. Bb2 {[%clk 0:02:39]}  Re8 {[%clk 0:02:44]} 14. h4 {[%clk 0:02:31]}  Bf8 {[%clk 0:02:39]} 15. Ne4 {[%clk 0:02:30]}  Nc5 {[%clk 0:02:32]} 16. Nxc5 {[%clk 0:02:25]}  Bxc5 {[%clk 0:02:32]} 17. Ng5 {[%clk 0:02:25]}  h6 {[%clk 0:02:24]} 18. Ne4 {[%clk 0:02:25]}  Bf8 {[%clk 0:02:23]} 19. Qh5 {[%clk 0:02:12]}  Be6 {[%clk 0:01:25]} 20. Bc1 {[%clk 0:02:07]}  Ra6 {[%clk 0:01:18]} 21. Rb1 {[%clk 0:01:48]}  Qc8 {[%clk 0:01:11]} 22. Qd1 {[%clk 0:01:40]}  Bg4 {[%clk 0:01:10]} 23. Qc2 {[%clk 0:01:38]}  Bh3 {[%clk 0:00:54]} 24. Bh1 {[%clk 0:01:19]}  Nd8 {[%clk 0:00:51]} 25. b4 {[%clk 0:01:13]}  axb4 {[%clk 0:00:49]} 26. axb4 {[%clk 0:01:14]}  Rg6 {[%clk 0:00:49]} 27. Kh2 {[%clk 0:01:14]}  Be6 {[%clk 0:00:40]} 28. h5 {[%clk 0:01:07]}  Rg4 {[%clk 0:00:37]} 29. f3 {[%clk 0:00:54]}  Rxe4 {[%clk 0:00:33]} 30. Rxe4 {[%clk 0:00:54]}  Bf5 {[%clk 0:00:31]} 31. Re1 {[%clk 0:00:54]}  Bd6 {[%clk 0:00:29]} 32. c5 {[%clk 0:00:49]}  Bb8 {[%clk 0:00:29]} 33. Qe2 {[%clk 0:00:45]}  Ne6 {[%clk 0:00:27]} 34. Bg2 {[%clk 0:00:44]}  Ng5 {[%clk 0:00:22]} 35. Kh1 {[%clk 0:00:31]}  Bh3 {[%clk 0:00:21]} 36. g4 {[%clk 0:00:29]}  Bxg2+ {[%clk 0:00:20]} 37. Kxg2 {[%clk 0:00:27]}  Ne6 {[%clk 0:00:18]} 38. Qe4 {[%clk 0:00:27]}  Rf8 {[%clk 0:00:16]} 39. Qf5 {[%clk 0:00:24]}  Qc6 {[%clk 0:00:14]} 40. Bd2 {[%clk 0:00:24]}  Kh8 {[%clk 0:00:10]} 41. Ra1 {[%clk 0:00:22]}  g6 {[%clk 0:00:09]} 42. Qe4 {[%clk 0:00:17]}  f5 {[%clk 0:00:07]} 43. Qxc6 {[%clk 0:00:17]}  bxc6 {[%clk 0:00:08]} 44. hxg6 {[%clk 0:00:16]}  fxg4 {[%clk 0:00:08]} 45. fxg4 {[%clk 0:00:16]}  Rg8 {[%clk 0:00:08]} 46. Rh1 {[%clk 0:00:15]}  Rxg6 {[%clk 0:00:08]} 47. Rxh6+ {[%clk 0:00:16]}  Rxh6 {[%clk 0:00:08]} 48. Bxh6 {[%clk 0:00:17]} 1-0


[Site "https://www.chess.com"]

[Event "Titled Tuesday Blitz June 6 Early 2023"]
[White "gau_npukyputb"]
[Black "Goffredo_Fofi"]
[WhiteElo "2705"]
[BlackElo "2481"]
[Result "1-0"]
[Round "4"]
[TimeControl "180+2"]
[Date "2023.06.06"]
[WhiteClock "0:01:37"]
[BlackClock "0:00:22"]
[Board "95"]

1. f4 {[%clk 0:02:59]}  g6 {[%clk 0:02:58]} 2. e4 {[%clk 0:02:58]}  Bg7 {[%clk 0:02:58]} 3. d3 {[%clk 0:02:58]}  c5 {[%clk 0:02:58]} 4. Nf3 {[%clk 0:02:58]}  Nc6 {[%clk 0:02:59]} 5. Nc3 {[%clk 0:02:59]}  d6 {[%clk 0:02:58]} 6. Be3 {[%clk 0:03:00]}  Nd4 {[%clk 0:02:46]} 7. Qd2 {[%clk 0:02:59]}  e6 {[%clk 0:02:45]} 8. O-O-O {[%clk 0:02:59]}  Ne7 {[%clk 0:02:45]} 9. Ne2 {[%clk 0:02:59]}  Nec6 {[%clk 0:02:36]} 10. c3 {[%clk 0:02:59]}  Nxe2+ {[%clk 0:02:28]} 11. Bxe2 {[%clk 0:02:59]}  Qa5 {[%clk 0:02:28]} 12. Kb1 {[%clk 0:02:59]}  b5 {[%clk 0:01:58]} 13. d4 {[%clk 0:02:58]}  b4 {[%clk 0:01:58]} 14. cxb4 {[%clk 0:02:54]}  cxb4 {[%clk 0:01:49]} 15. d5 {[%clk 0:02:49]}  exd5 {[%clk 0:01:49]} 16. Qxd5 {[%clk 0:02:49]}  Qxd5 {[%clk 0:01:17]} 17. Rxd5 {[%clk 0:02:50]}  Bb7 {[%clk 0:01:06]} 18. Rxd6 {[%clk 0:02:47]}  O-O {[%clk 0:01:05]} 19. Rd7 {[%clk 0:02:47]}  Rab8 {[%clk 0:01:03]} 20. Rc1 {[%clk 0:02:43]}  Ba8 {[%clk 0:01:02]} 21. e5 {[%clk 0:02:39]}  Rfd8 {[%clk 0:00:43]} 22. Rxd8+ {[%clk 0:02:39]}  Rxd8 {[%clk 0:00:43]} 23. Bb5 {[%clk 0:02:38]}  Ne7 {[%clk 0:00:41]} 24. Bxa7 {[%clk 0:02:38]}  Nf5 {[%clk 0:00:35]} 25. Bc5 {[%clk 0:02:02]}  Bf8 {[%clk 0:00:34]} 26. Bxf8 {[%clk 0:02:02]}  Kxf8 {[%clk 0:00:35]} 27. Bc6 {[%clk 0:01:57]}  Bxc6 {[%clk 0:00:30]} 28. Rxc6 {[%clk 0:01:57]}  Rd1+ {[%clk 0:00:30]} 29. Rc1 {[%clk 0:01:57]}  Rd3 {[%clk 0:00:30]} 30. Kc2 {[%clk 0:01:52]}  Rd5 {[%clk 0:00:30]} 31. Kb3 {[%clk 0:01:49]}  Nd4+ {[%clk 0:00:29]} 32. Nxd4 {[%clk 0:01:48]}  Rxd4 {[%clk 0:00:29]} 33. g3 {[%clk 0:01:49]}  h5 {[%clk 0:00:29]} 34. Rc4 {[%clk 0:01:40]}  Rd2 {[%clk 0:00:26]} 35. Rxb4 {[%clk 0:01:35]}  Rxh2 {[%clk 0:00:26]} 36. Rc4 {[%clk 0:01:35]}  Rh3 {[%clk 0:00:20]} 37. Rc3 {[%clk 0:01:35]}  h4 {[%clk 0:00:20]} 38. gxh4 {[%clk 0:01:36]}  Rxh4 {[%clk 0:00:21]} 39. Rf3 {[%clk 0:01:36]}  Rh2 {[%clk 0:00:21]} 40. a4 {[%clk 0:01:36]}  Ke7 {[%clk 0:00:22]} 41. a5 {[%clk 0:01:36]}  Kd7 {[%clk 0:00:23]} 42. Rc3 {[%clk 0:01:36]}  Rh8 {[%clk 0:00:22]} 43. Ka4 {[%clk 0:01:36]}  Ra8 {[%clk 0:00:20]} 44. b4 {[%clk 0:01:35]}  Ke6 {[%clk 0:00:21]} 45. b5 {[%clk 0:01:35]}  Kf5 {[%clk 0:00:22]} 46. Rc4 {[%clk 0:01:35]}  g5 {[%clk 0:00:22]} 47. fxg5 {[%clk 0:01:36]}  Kxe5 {[%clk 0:00:22]} 48. b6 {[%clk 0:01:37]} 1-0


[Site "https://www.chess.com"]

[Event "Titled Tuesday Blitz June 6 Early 2023"]
[White "Shuvalova, Polina"]
[Black "i_like_explosions"]
[WhiteFideId "24171760"]
[WhiteElo "2281"]
[BlackElo "2462"]
[Result "1-0"]
[Round "4"]
[TimeControl "180+2"]
[Date "2023.06.06"]
[WhiteClock "0:01:32"]
[BlackClock "0:00:34"]
[Board "97"]

1. Nf3 {[%clk 0:03:00]}  Nf6 {[%clk 0:02:59]} 2. g3 {[%clk 0:02:58]}  g6 {[%clk 0:02:59]} 3. Bg2 {[%clk 0:02:58]}  Bg7 {[%clk 0:03:00]} 4. O-O {[%clk 0:02:58]}  O-O {[%clk 0:03:01]} 5. d4 {[%clk 0:02:58]}  d6 {[%clk 0:03:01]} 6. c4 {[%clk 0:02:57]}  c5 {[%clk 0:03:02]} 7. Nc3 {[%clk 0:02:55]}  Nc6 {[%clk 0:03:02]} 8. d5 {[%clk 0:02:53]}  Na5 {[%clk 0:03:02]} 9. Nd2 {[%clk 0:02:50]}  a6 {[%clk 0:03:02]} 10. a4 {[%clk 0:02:49]}  Rb8 {[%clk 0:03:00]} 11. e4 {[%clk 0:02:45]}  e5 {[%clk 0:02:51]} 12. b3 {[%clk 0:02:39]}  Bd7 {[%clk 0:02:50]} 13. Re1 {[%clk 0:02:38]}  b6 {[%clk 0:02:41]} 14. Nf3 {[%clk 0:02:33]}  Ne8 {[%clk 0:02:17]} 15. Bd2 {[%clk 0:02:25]}  h6 {[%clk 0:02:13]} 16. Qc2 {[%clk 0:02:22]}  f5 {[%clk 0:02:07]} 17. Nh4 {[%clk 0:02:20]}  Qf6 {[%clk 0:02:05]} 18. exf5 {[%clk 0:02:06]}  gxf5 {[%clk 0:02:05]} 19. Bh3 {[%clk 0:02:01]}  Nc7 {[%clk 0:01:32]} 20. Re3 {[%clk 0:02:00]}  e4 {[%clk 0:01:19]} 21. Rae1 {[%clk 0:01:55]}  Rbd8 {[%clk 0:01:17]} 22. Ng2 {[%clk 0:01:50]}  Be8 {[%clk 0:00:52]} 23. Ne2 {[%clk 0:01:47]}  Bf7 {[%clk 0:00:50]} 24. Bc3 {[%clk 0:01:46]}  Qg6 {[%clk 0:00:49]} 25. Nef4 {[%clk 0:01:44]}  Qh7 {[%clk 0:00:45]} 26. Bxg7 {[%clk 0:01:43]}  Kxg7 {[%clk 0:00:45]} 27. Nh4 {[%clk 0:01:41]}  Bg6 {[%clk 0:00:42]} 28. Nhxg6 {[%clk 0:01:40]}  Rf6 {[%clk 0:00:42]} 29. Qc3 {[%clk 0:01:35]}  Kf7 {[%clk 0:00:42]} 30. Nh4 {[%clk 0:01:33]}  Ne8 {[%clk 0:00:34]} 31. Nh5 {[%clk 0:01:32]} 1-0


[Site "https://www.chess.com"]

[Event "Titled Tuesday Blitz June 6 Early 2023"]
[White "Gil Alba, Hector Luis"]
[Black "Gomez Ledo, Roberto Carlos"]
[WhiteFideId "3504670"]
[BlackFideId "3507076"]
[WhiteElo "2331"]
[BlackElo "2378"]
[Result "0-1"]
[Round "4"]
[TimeControl "180+2"]
[Date "2023.06.06"]
[WhiteClock "0:00:01"]
[BlackClock "0:00:04"]
[Board "98"]

1. e4 {[%clk 0:03:00]}  e5 {[%clk 0:02:59]} 2. Nf3 {[%clk 0:03:00]}  Nc6 {[%clk 0:02:59]} 3. Bb5 {[%clk 0:03:00]}  a6 {[%clk 0:02:58]} 4. Ba4 {[%clk 0:03:00]}  Nf6 {[%clk 0:02:58]} 5. d3 {[%clk 0:02:59]}  d6 {[%clk 0:02:57]} 6. c4 {[%clk 0:02:57]}  g6 {[%clk 0:02:56]} 7. O-O {[%clk 0:02:57]}  Bg7 {[%clk 0:02:56]} 8. Nc3 {[%clk 0:02:57]}  O-O {[%clk 0:02:57]} 9. Bxc6 {[%clk 0:02:57]}  bxc6 {[%clk 0:02:56]} 10. d4 {[%clk 0:02:58]}  exd4 {[%clk 0:02:54]} 11. Nxd4 {[%clk 0:02:59]}  Bb7 {[%clk 0:02:51]} 12. f3 {[%clk 0:02:55]}  Nh5 {[%clk 0:02:39]} 13. Be3 {[%clk 0:02:53]}  Rb8 {[%clk 0:02:33]} 14. b3 {[%clk 0:02:52]}  Qh4 {[%clk 0:02:15]} 15. Qe1 {[%clk 0:02:48]}  Qe7 {[%clk 0:02:10]} 16. Rd1 {[%clk 0:02:44]}  Rbe8 {[%clk 0:02:06]} 17. Qd2 {[%clk 0:02:36]}  f5 {[%clk 0:02:03]} 18. Rfe1 {[%clk 0:02:33]}  f4 {[%clk 0:02:01]} 19. Bf2 {[%clk 0:02:32]}  Be5 {[%clk 0:01:55]} 20. Nde2 {[%clk 0:02:15]}  c5 {[%clk 0:01:55]} 21. Nd5 {[%clk 0:02:15]}  Qg7 {[%clk 0:01:54]} 22. a3 {[%clk 0:01:45]}  g5 {[%clk 0:01:53]} 23. h3 {[%clk 0:01:45]}  Nf6 {[%clk 0:01:49]} 24. b4 {[%clk 0:01:42]}  Nxd5 {[%clk 0:01:41]} 25. exd5 {[%clk 0:01:37]}  cxb4 {[%clk 0:01:40]} 26. axb4 {[%clk 0:01:37]}  h5 {[%clk 0:01:40]} 27. Nd4 {[%clk 0:01:36]}  g4 {[%clk 0:01:32]} 28. hxg4 {[%clk 0:01:09]}  hxg4 {[%clk 0:01:30]} 29. fxg4 {[%clk 0:00:52]}  Qxg4 {[%clk 0:01:26]} 30. Nf3 {[%clk 0:00:50]}  Rf6 {[%clk 0:01:19]} 31. Bd4 {[%clk 0:00:37]}  Rf5 {[%clk 0:01:08]} 32. Qd3 {[%clk 0:00:31]}  Rh5 {[%clk 0:01:01]} 33. Re2 {[%clk 0:00:24]}  Bc8 {[%clk 0:00:56]} 34. Rde1 {[%clk 0:00:22]}  Qg3 {[%clk 0:00:45]} 35. Bxe5 {[%clk 0:00:19]}  dxe5 {[%clk 0:00:43]} 36. Rxe5 {[%clk 0:00:18]}  Rhxe5 {[%clk 0:00:28]} 37. Rxe5 {[%clk 0:00:18]}  Rxe5 {[%clk 0:00:28]} 38. Nxe5 {[%clk 0:00:18]}  Qe1+ {[%clk 0:00:28]} 39. Kh2 {[%clk 0:00:19]}  Qxe5 {[%clk 0:00:29]} 40. Qg6+ {[%clk 0:00:19]}  Kf8 {[%clk 0:00:25]} 41. Qh6+ {[%clk 0:00:18]}  Ke7 {[%clk 0:00:20]} 42. Qh7+ {[%clk 0:00:18]}  Kd8 {[%clk 0:00:19]} 43. Qg8+ {[%clk 0:00:16]}  Qe8 {[%clk 0:00:19]} 44. Qg5+ {[%clk 0:00:16]}  Qe7 {[%clk 0:00:19]} 45. Qxf4 {[%clk 0:00:16]}  Qxb4 {[%clk 0:00:18]} 46. Qf6+ {[%clk 0:00:15]}  Qe7 {[%clk 0:00:18]} 47. Qh8+ {[%clk 0:00:15]}  Qe8 {[%clk 0:00:17]} 48. Qf6+ {[%clk 0:00:15]}  Qe7 {[%clk 0:00:17]} 49. Qh8+ {[%clk 0:00:15]}  Kd7 {[%clk 0:00:18]} 50. Qh3+ {[%clk 0:00:15]}  Kd6 {[%clk 0:00:08]} 51. Qxc8 {[%clk 0:00:14]}  Qh4+ {[%clk 0:00:07]} 52. Kg1 {[%clk 0:00:14]}  Qd4+ {[%clk 0:00:06]} 53. Kh2 {[%clk 0:00:14]}  Qxc4 {[%clk 0:00:05]} 54. Qe6+ {[%clk 0:00:13]}  Kc5 {[%clk 0:00:05]} 55. Qc6+ {[%clk 0:00:13]}  Kd4 {[%clk 0:00:05]} 56. Qf6+ {[%clk 0:00:11]}  Kxd5 {[%clk 0:00:05]} 57. Qf7+ {[%clk 0:00:11]}  Kd4 {[%clk 0:00:04]} 58. Qf4+ {[%clk 0:00:11]}  Kc3 {[%clk 0:00:04]} 59. Qe3+ {[%clk 0:00:11]}  Kb4 {[%clk 0:00:04]} 60. Qe7+ {[%clk 0:00:10]}  Kb5 {[%clk 0:00:04]} 61. Qe5+ {[%clk 0:00:10]}  c5 {[%clk 0:00:03]} 62. Qb8+ {[%clk 0:00:09]}  Ka4 {[%clk 0:00:04]} 63. Qe8+ {[%clk 0:00:09]}  Kb3 {[%clk 0:00:03]} 64. Qe3+ {[%clk 0:00:09]}  Kb4 {[%clk 0:00:03]} 65. Qd2+ {[%clk 0:00:08]}  Qc3 {[%clk 0:00:03]} 66. Qf4+ {[%clk 0:00:09]}  c4 {[%clk 0:00:03]} 67. Qd6+ {[%clk 0:00:09]}  Kb3 {[%clk 0:00:03]} 68. Qxa6 {[%clk 0:00:08]}  Qe5+ {[%clk 0:00:02]} 69. Kh3 {[%clk 0:00:09]}  c3 {[%clk 0:00:03]} 70. Qb6+ {[%clk 0:00:08]}  Kc2 {[%clk 0:00:03]} 71. Qf2+ {[%clk 0:00:08]}  Kb3 {[%clk 0:00:04]} 72. Qb6+ {[%clk 0:00:08]}  Kc4 {[%clk 0:00:04]} 73. Qc6+ {[%clk 0:00:07]}  Kd3 {[%clk 0:00:05]} 74. Qa6+ {[%clk 0:00:05]}  Kd2 {[%clk 0:00:04]} 75. Qa2+ {[%clk 0:00:01]}  c2 {[%clk 0:00:04]} 0-1


[Site "https://www.chess.com"]

[Event "Titled Tuesday Blitz June 6 Early 2023"]
[White "Principe, Gerson"]
[Black "Ansh M Shah"]
[WhiteFideId "3804550"]
[BlackFideId "25033379"]
[WhiteElo "2229"]
[BlackElo "2084"]
[Result "0-1"]
[Round "4"]
[TimeControl "180+2"]
[Date "2023.06.06"]
[WhiteClock "0:00:02"]
[BlackClock "0:00:11"]
[Board "101"]

1. Nf3 {[%clk 0:02:59]}  c6 {[%clk 0:03:00]} 2. e4 {[%clk 0:02:48]}  d5 {[%clk 0:03:01]} 3. Nc3 {[%clk 0:02:42]}  Bg4 {[%clk 0:03:01]} 4. h3 {[%clk 0:02:42]}  Bxf3 {[%clk 0:03:01]} 5. Qxf3 {[%clk 0:02:42]}  e6 {[%clk 0:03:00]} 6. d3 {[%clk 0:02:28]}  Nd7 {[%clk 0:02:58]} 7. Bd2 {[%clk 0:02:19]}  Qb6 {[%clk 0:02:57]} 8. O-O-O {[%clk 0:02:16]}  d4 {[%clk 0:02:57]} 9. Ne2 {[%clk 0:02:16]}  a5 {[%clk 0:02:56]} 10. Qg3 {[%clk 0:02:10]}  a4 {[%clk 0:02:49]} 11. f4 {[%clk 0:02:07]}  c5 {[%clk 0:02:48]} 12. Qe1 {[%clk 0:01:55]}  Ne7 {[%clk 0:02:43]} 13. g4 {[%clk 0:01:52]}  Nc6 {[%clk 0:02:42]} 14. a3 {[%clk 0:01:45]}  g5 {[%clk 0:02:35]} 15. Bg2 {[%clk 0:01:41]}  gxf4 {[%clk 0:02:33]} 16. Nxf4 {[%clk 0:01:41]}  Nde5 {[%clk 0:02:32]} 17. Rf1 {[%clk 0:01:40]}  c4 {[%clk 0:02:29]} 18. c3 {[%clk 0:01:15]}  Qb3 {[%clk 0:01:23]} 19. Qe2 {[%clk 0:00:39]}  Bh6 {[%clk 0:00:26]} 20. Kb1 {[%clk 0:00:33]}  O-O-O {[%clk 0:00:15]} 21. Be1 {[%clk 0:00:13]}  Bxf4 {[%clk 0:00:14]} 22. Rxf4 {[%clk 0:00:13]}  cxd3 {[%clk 0:00:11]} 23. Rxd3 {[%clk 0:00:05]}  Nxd3 {[%clk 0:00:10]} 24. Qxd3 {[%clk 0:00:06]}  dxc3 {[%clk 0:00:11]} 25. Qc2 {[%clk 0:00:02]}  Rd1+ {[%clk 0:00:11]} 0-1


[Site "https://www.chess.com"]

[Event "Titled Tuesday Blitz June 6 Early 2023"]
[White "Aloma Vidal, Robert"]
[Black "Lima, Kleyton Alcantara"]
[WhiteFideId "2260409"]
[BlackFideId "22718397"]
[WhiteElo "2435"]
[BlackElo "2009"]
[Result "0-1"]
[Round "4"]
[TimeControl "180+2"]
[Date "2023.06.06"]
[WhiteClock "0:00:01"]
[BlackClock "0:00:45"]
[Board "102"]

1. e4 {[%clk 0:02:58]}  c5 {[%clk 0:02:59]} 2. c3 {[%clk 0:02:57]}  Nf6 {[%clk 0:02:59]} 3. e5 {[%clk 0:02:58]}  Nd5 {[%clk 0:02:59]} 4. Nf3 {[%clk 0:02:58]}  e6 {[%clk 0:02:58]} 5. Bc4 {[%clk 0:02:56]}  d6 {[%clk 0:02:58]} 6. d4 {[%clk 0:02:55]}  cxd4 {[%clk 0:02:58]} 7. cxd4 {[%clk 0:02:56]}  Be7 {[%clk 0:02:59]} 8. O-O {[%clk 0:02:56]}  Nc6 {[%clk 0:02:57]} 9. a3 {[%clk 0:02:51]}  O-O {[%clk 0:02:57]} 10. Bd3 {[%clk 0:02:52]}  Bd7 {[%clk 0:02:46]} 11. Qc2 {[%clk 0:02:51]}  Rc8 {[%clk 0:02:42]} 12. Bxh7+ {[%clk 0:02:38]}  Kh8 {[%clk 0:02:40]} 13. Nc3 {[%clk 0:02:09]}  g6 {[%clk 0:02:31]} 14. Bxg6 {[%clk 0:02:08]}  fxg6 {[%clk 0:02:32]} 15. Qxg6 {[%clk 0:01:52]}  Qe8 {[%clk 0:02:31]} 16. Qh6+ {[%clk 0:01:49]}  Kg8 {[%clk 0:02:31]} 17. Re1 {[%clk 0:01:04]}  Qf7 {[%clk 0:02:13]} 18. Nxd5 {[%clk 0:01:01]}  exd5 {[%clk 0:02:12]} 19. e6 {[%clk 0:01:02]}  Bxe6 {[%clk 0:02:12]} 20. Rxe6 {[%clk 0:01:00]}  Bf6 {[%clk 0:02:09]} 21. Ng5 {[%clk 0:00:54]}  Qg7 {[%clk 0:01:58]} 22. Qxg7+ {[%clk 0:00:52]}  Bxg7 {[%clk 0:01:59]} 23. Rxd6 {[%clk 0:00:48]}  Nxd4 {[%clk 0:01:55]} 24. Be3 {[%clk 0:00:38]}  Nc2 {[%clk 0:01:55]} 25. Rf1 {[%clk 0:00:25]}  Nxe3 {[%clk 0:01:53]} 26. fxe3 {[%clk 0:00:25]}  Rxf1+ {[%clk 0:01:53]} 27. Kxf1 {[%clk 0:00:26]}  Bxb2 {[%clk 0:01:53]} 28. Rxd5 {[%clk 0:00:24]}  Bxa3 {[%clk 0:01:52]} 29. Rd7 {[%clk 0:00:24]}  Rb8 {[%clk 0:01:45]} 30. Ke2 {[%clk 0:00:24]}  Bc5 {[%clk 0:01:44]} 31. Kd3 {[%clk 0:00:24]}  b5 {[%clk 0:01:44]} 32. Ne6 {[%clk 0:00:23]}  Bb6 {[%clk 0:01:40]} 33. e4 {[%clk 0:00:22]}  b4 {[%clk 0:01:33]} 34. Kc4 {[%clk 0:00:22]}  a5 {[%clk 0:01:33]} 35. Kb3 {[%clk 0:00:20]}  Be3 {[%clk 0:01:29]} 36. Rd3 {[%clk 0:00:20]}  Ba7 {[%clk 0:01:22]} 37. Nc7 {[%clk 0:00:19]}  Rc8 {[%clk 0:01:14]} 38. Nb5 {[%clk 0:00:19]}  Bb6 {[%clk 0:01:13]} 39. Nd6 {[%clk 0:00:19]}  Rc1 {[%clk 0:01:09]} 40. Nc4 {[%clk 0:00:19]}  Bc7 {[%clk 0:01:06]} 41. Rd7 {[%clk 0:00:19]}  Rc3+ {[%clk 0:01:06]} 42. Ka4 {[%clk 0:00:19]}  Rxc4 {[%clk 0:01:06]} 43. e5 {[%clk 0:00:20]}  Rc3 {[%clk 0:01:00]} 44. e6 {[%clk 0:00:19]}  Kf8 {[%clk 0:00:59]} 45. h4 {[%clk 0:00:17]}  Ra3+ {[%clk 0:00:54]} 46. Kb5 {[%clk 0:00:17]}  b3 {[%clk 0:00:49]} 47. Kc6 {[%clk 0:00:02]}  b2 {[%clk 0:00:46]} 48. Rf7+ {[%clk 0:00:01]}  Ke8 {[%clk 0:00:45]} 0-1


[Site "https://www.chess.com"]